fUSD/lending_fUSD_20240105
["ID","MTS","AMOUNT","RATE_DAILY","PERIOD"]
[310283138,1704461705171,-332.35071247,0.00022799,2]
[310283139,1704461705194,-641.44062132,0.00022799,2]
[310283140,1704461705217,-2655.88392487,0.00022799,2]
[310283141,1704461705243,-269.83626346,0.00022799,2]
[310283142,1704461705269,-264.73235728,0.00022799,2]
[310283143,1704461705292,-40286.16347987,0.00022799,2]
[310283144,1704461705313,-355088.5388,0.000228,2]
[310283145,1704461705335,-250.5234,0.000228,2]
[310283146,1704461705358,-2500.0,0.00022899,2]
[310283147,1704461705379,-203.37489632,0.00022999,2]
[310283148,1704461705401,-931.61796289,0.00023,2]
[310283149,1704461705423,-223.27,0.00023,2]
[310283150,1704461705445,-500.0,0.00023054,2]
[310283151,1704461705469,-204.0,0.00023149,2]
[310283152,1704461705493,-500.0,0.00023291,2]
[310283153,1704461705514,-170.37,0.00023488,2]
[310283154,1704461705535,-500.0,0.00023529,2]
[310283155,1704461705557,-500.0,0.00023766,2]
[310283156,1704461705579,-299.02676355,0.00024,2]
[310283157,1704461705600,-500.0,0.00024003,2]
[310283158,1704461705623,-151.42,0.00024123,2]
[310283159,1704461705649,-2932.0,0.000242,2]
[310283160,1704461705675,-500.0,0.00024478,2]
[310283161,1704461705697,-500.0,0.00024953,2]
[310283162,1704461705720,-532.40497129,0.00025,2]
[310283163,1704461705745,-166.89184051,0.00025,2]
[310283164,1704461705768,-1580.1889945,0.00025,2]
[310283165,1704461705790,-321.9744828,0.00025261,2]
[310283166,1704461705812,-500.0,0.00025428,2]
[310283167,1704461705835,-500.0,0.00025903,2]
[310283168,1704461705858,-55555.0,0.00025979,2]
[310283169,1704461705881,-343.63321494,0.00025988,2]
[310283170,1704461705904,-318.0,0.00025989,2]
[310283171,1704461705926,-1116.24398201,0.00026059,2]
[310283172,1704461705947,-1107.41229908,0.00026059,2]
[310283173,1704461705972,-388.52,0.00026121,2]
[310283174,1704461705995,-293.41,0.00026121,2]
[310283175,1704461706017,-5000.0,0.00026196,2]
[310283176,1704461706039,-500.0,0.00026377,2]
[310283177,1704461706061,-718.51,0.00026462,2]
[310283178,1704461706084,-200.0,0.00026591,2]
[310283179,1704461706105,-507.31091902,0.00026591,2]
[310283180,1704461706128,-336.2168,0.00026591,2]
[310283181,1704461706151,-6626.71932322,0.00026591,2]
[310283182,1704461706176,-151.42,0.00026653,2]
[310283183,1704461706199,-223973.4437446,0.00026666,2]
[310283184,1704461706222,-8951.839203,0.00026666,2]
[310283185,1704461706247,-13653.1061782,0.00026684,2]
[310283186,1704461706270,-167.0,0.00026703,2]
[310283187,1704461706292,-153.75,0.000268,2]
[310283188,1704461706314,-300.0,0.000268,2]
[310283189,1704461706338,-757.85,0.000268,2]
[310283190,1704461706361,-313.61,0.00026871,2]
[310283191,1704461706385,-313.61,0.00026871,2]
[310283192,1704461706414,-313.61,0.00026871,2]
[310283193,1704461706437,-313.61,0.00026871,2]
[310283194,1704461706460,-313.61,0.00026871,2]
[310283195,1704461706485,-539.61006327,0.000269,2]
[310283196,1704461706509,-293.41,0.00026943,2]
[310283197,1704461706532,-293.41,0.00026943,2]
[310283198,1704461706558,-293.41,0.00026943,2]
[310283199,1704461706580,-293.41,0.00026943,2]
[310283200,1704461706604,-293.41,0.00026943,2]
[310283201,1704461706626,-454.1,0.00026943,2]
[310283202,1704461706654,-293.41,0.00026943,2]
[310283203,1704461706677,-293.41,0.00026943,2]
[310283204,1704461706700,-293.41,0.00026943,2]
[310283205,1704461706723,-293.41,0.00026943,2]
[310283206,1704461706748,-293.41,0.00026943,2]
[310283207,1704461706771,-293.41,0.00026943,2]
[310283208,1704461706794,-293.41,0.00026943,2]
[310283209,1704461706816,-293.41,0.00026943,2]
[310283210,1704461706838,-293.41,0.00026943,2]
[310283211,1704461706860,-293.41,0.00026943,2]
[310283212,1704461706883,-293.41,0.00026943,2]
[310283213,1704461706905,-293.41,0.00026943,2]
[310283214,1704461706927,-293.41,0.00026943,2]
[310283215,1704461706950,-293.41,0.00026943,2]
[310283216,1704461706972,-293.41,0.00026943,2]
[310283217,1704461706996,-293.41,0.00026943,2]
[310283218,1704461707019,-293.41,0.00026943,2]
[310283219,1704461707042,-293.41,0.00026943,2]
[310283220,1704461707065,-293.41,0.00026943,2]
[310283221,1704461707087,-293.41,0.00026943,2]
[310283222,1704461707109,-224.14929897,0.00027,2]
[310283223,1704461707131,-414.87906789,0.00027,2]
[310283224,1704461707337,-1350.0,0.00027,3]
[310283225,1704461707359,-1037.0,0.00027,2]
[310283226,1704461707382,-588.8,0.00027091,2]
[310283227,1704461707405,-820.23861868,0.00027249,3]
[310283228,1704461707427,-413.98,0.00027353,2]
[310283229,1704461707450,-419.95,0.0002737,2]
[310283230,1704461707474,-732.52,0.00027371,2]
[310283231,1704461707498,-428.65,0.00027376,2]
[310283232,1704461707520,-202.64747312,0.00027397,5]
[310283233,1704461707543,-152.49374929,0.00027397,2]
[310283234,1704461707566,-3000.0,0.00027397,2]
[310283235,1704461707588,-3000.0,0.00027397,2]
[310283236,1704461707610,-3000.0,0.00027397,2]
[310283237,1704461707633,-3000.0,0.00027397,2]
[310283238,1704461707660,-3000.0,0.00027397,2]
[310283239,1704461707682,-3693.5327,0.00027397,2]
[310283240,1704461707706,-155.0,0.00027397,2]
[310283241,1704461707727,-342.0,0.00027397,4]
[310283242,1704461707754,-250.0,0.00027397,2]
[310283243,1704461707782,-2043.25,0.00027397,2]
[310283244,1704461707804,-250.0,0.000274,2]
[310283245,1704461707826,-272.12686771,0.000275,4]
[310283246,1704461707848,-167.0,0.00027505,2]
[310283247,1704461707871,-2043.25,0.00027556,2]
[310283248,1704461707893,-1000.0,0.000277,2]
[310283249,1704461707917,-2043.25,0.00027714,2]
[310283250,1704461707941,-342.0,0.000278,2]
[310283251,1704461707963,-2043.25,0.00027872,2]
[310283252,1704461707987,-167.0,0.00027903,2]
[310283253,1704461708009,-8436.87,0.00027945,2]
[310283254,1704461708032,-157.39326305,0.00028,2]
[310283255,1704461708054,-203.41584703,0.00028,2]
[310283256,1704461708077,-500.0,0.00028,2]
[310283257,1704461708099,-500.0,0.00028,2]
[310283258,1704461708121,-500.0,0.00028,2]
[310283259,1704461708149,-500.0,0.00028,2]
[310283260,1704461708174,-500.0,0.00028,2]
[310283261,1704461708196,-500.0,0.00028,2]
[310283262,1704461708217,-500.0,0.00028,2]
[310283263,1704461708241,-500.0,0.00028,2]
[310283264,1704461708264,-500.0,0.00028,2]
[310283265,1704461708288,-500.0,0.00028,2]
[310283266,1704461708310,-500.0,0.00028,2]
[310283267,1704461708333,-500.0,0.00028,2]
[310283268,1704461708355,-500.0,0.00028,2]
[310283269,1704461708378,-500.0,0.00028,2]
[310283270,1704461708399,-500.0,0.00028,2]
[310283271,1704461708422,-500.0,0.00028,2]
[310283272,1704461708444,-500.0,0.00028,2]
[310283273,1704461708466,-500.0,0.00028,2]
[310283274,1704461708491,-500.0,0.00028,2]
[310283275,1704461708515,-500.0,0.00028,2]
[310283276,1704461708538,-500.0,0.00028,2]
[310283277,1704461708560,-500.0,0.00028,2]
[310283278,1704461708582,-500.0,0.00028,2]
[310283279,1704461708603,-500.0,0.00028,2]
[310283280,1704461708625,-500.0,0.00028,2]
[310283281,1704461708648,-500.0,0.00028,2]
[310283282,1704461708673,-500.0,0.00028,2]
[310283283,1704461708695,-500.0,0.00028,2]
[310283284,1704461708717,-500.0,0.00028,2]
[310283285,1704461708742,-500.0,0.00028,2]
[310283286,1704461708765,-500.0,0.00028,2]
[310283287,1704461708788,-500.0,0.00028,2]
[310283288,1704461708810,-500.0,0.00028,2]
[310283289,1704461708832,-353.46,0.00028,2]
[310283290,1704461708853,-500.0,0.00028,2]
[310283291,1704461708876,-2254.005,0.00028,2]
[310283292,1704461708899,-12262.29609774,0.00028,2]
[310283293,1704461708921,-2043.25,0.0002803,2]
[310283294,1704461708945,-588.8,0.00028069,2]
[310283295,1704461708967,-11826.03785101,0.00028093,2]
[310283296,1704461708990,-2043.25,0.00028189,2]
[310283297,1704461709012,-428.65,0.00028275,2]
[310283298,1704461709033,-167.0,0.00028307,2]
[310283299,1704461709056,-2043.25,0.00028347,2]
[310283300,1704461709078,-32148.87,0.000285,2]
[310283301,1704461709100,-2043.25,0.00028505,2]
[310283302,1704461709121,-185.0,0.00028537,2]
[310283303,1704461709144,-500.0,0.00028548,2]
[310283304,1704461709166,-176.44433375,0.00028654,2]
[310283305,1704461709188,-1500.0,0.00028657,2]
[310283306,1704461709209,-150.0,0.00028662,2]
[310283307,1704461709239,-2043.25,0.00028664,2]
[310283308,1704461709259,-150.0,0.00028664,2]
[310283309,1704461709281,-166.91230757,0.00028666,2]
[310283310,1704461709305,-150.0,0.00028668,2]
[310283311,1704461709326,-150.0,0.00028672,2]
[310283312,1704461709350,-150.0,0.00028679,2]
[310283313,1704461709371,-150.0,0.00028679,2]
[310283314,1704461709393,-1500.0,0.00028682,2]
[310283315,1704461709414,-150.0,0.00028688,2]
[310283316,1704461709437,-820.23861868,0.000287,4]
[310283317,1704461709459,-1500.0,0.00028704,2]
[310283318,1704461709481,-248.70872863,0.00028708,2]
[310283319,1704461709507,-16388.34582866,0.00028708,2]
[310283320,1704461709528,-492.66491416,0.00028708,2]
[310283321,1704461709550,-150.0,0.00028713,2]
[310283322,1704461709571,-300.0,0.00028717,2]
[310283323,1704461709593,-150.0,0.00028718,2]
[310283324,1704461709615,-300.0,0.00028726,2]
[310283325,1704461709637,-1500.0,0.00028731,2]
[310283326,1704461709660,-1500.0,0.0002875,2]
[310283327,1704461709685,-1500.0,0.00028755,2]
[310283328,1704461709711,-150.0,0.00028761,2]
[310283329,1704461709732,-150.0,0.00028762,2]
[310283330,1704461709760,-300.0,0.00028765,2]
[310283331,1704461709781,-197.15961698,0.00028766,2]
[310283332,1704461709803,-155.0,0.00028767,2]
[310283333,1704461709825,-300.0,0.00028768,2]
[310283334,1704461709849,-150.0,0.00028773,2]
[310283335,1704461709873,-644.98199605,0.00028785,2]
[310283336,1704461709896,-1500.0,0.00028786,2]
[310283337,1704461709918,-5325.59,0.00028799,2]
[310283338,1704461709939,-5325.59,0.00028799,2]
[310283339,1704461709964,-5325.59,0.00028799,2]
[310283340,1704461709986,-5325.59,0.00028799,2]
[310283341,1704461710006,-25799.65277239,0.000288,2]
[310283342,1704461710027,-1500.0,0.00028803,2]
[310283343,1704461710224,-150.0,0.00028814,2]
[310283344,1704461710249,-302.02476776,0.0002882,2]
[310283345,1704461710272,-2043.25,0.00028822,2]
[310283346,1704461710294,-1500.0,0.00028836,2]
[310283347,1704461710315,-150.0,0.00028849,2]
[310283348,1704461710338,-558.43427985,0.00028853,2]
[310283349,1704461710362,-150.0,0.00028866,2]
[310283350,1704461710383,-300.0,0.00028866,2]
[310283351,1704461710405,-1500.0,0.00028869,2]
[310283352,1704461710428,-150.0,0.00028871,2]
[310283353,1704461710451,-150.0,0.00028874,2]
[310283354,1704461710473,-1500.0,0.00028879,2]
[310283355,1704461710500,-150.0,0.00028879,2]
[310283356,1704461710522,-150.0,0.00028879,2]
[310283357,1704461710543,-1500.0,0.0002889,2]
[310283358,1704461710564,-300.0,0.0002889,2]
[310283359,1704461710585,-1206.45905103,0.00028897,2]
[310283360,1704461710607,-539.61006327,0.000289,2]
[310283361,1704461710629,-1500.0,0.00028913,2]
[310283362,1704461710651,-1500.0,0.00028914,2]
[310283363,1704461710674,-150.0,0.0002892,2]
[310283364,1704461710696,-300.0,0.00028924,2]
[310283365,1704461710716,-370.01108445,0.00028998,2]
[310283366,1704461710739,-522.20683445,0.00028998,2]
[310283367,1704461710761,-242.25597088,0.00028998,2]
[310283368,1704461710782,-1676.07450224,0.00028998,2]
[310283369,1704461710803,-7485.68006583,0.00028998,2]
[310283370,1704461710824,-210.92031935,0.00028998,2]
[310283371,1704461710846,-1424.35902177,0.00028999,2]
[310283372,1704461710867,-164.94450279,0.00028999,2]
[310283373,1704461710889,-33681.86971165,0.00028999,2]
[310283374,1704461710911,-372.0,0.00029,5]
[310283375,1704461710933,-129007.34190617,0.00029,2]
[310283376,1704461710955,-156.46608156,0.00029,2]
[310283377,1704461710977,-1400.0,0.00029,3]
[310283378,1704461711003,-483.486772,0.00029,2]
[310283379,1704461711025,-1963.278673,0.00029,2]
[310283380,1704461711047,-500.0,0.00029,2]
[310283381,1704461711069,-3798.712,0.00029,2]
[310283382,1704461711090,-987.867,0.00029,2]
[310283383,1704461711112,-615.5099,0.00029,2]
[310283384,1704461711134,-300.0,0.00029,2]
[310283385,1704461711156,-460.078832,0.00029,2]
[310283386,1704461711177,-304.531688,0.00029,2]
[310283387,1704461711199,-150.0,0.00029,2]
[310283388,1704461711221,-150.0,0.00029,2]
[310283389,1704461711243,-150.0,0.00029,2]
[310283390,1704461711269,-150.0,0.00029,2]
[310283391,1704461711293,-173.879406,0.00029,2]
[310283392,1704461711316,-1500.0,0.00029,2]
[310283393,1704461711338,-6916.3457,0.00029,2]
[310283394,1704461711361,-588.8,0.00029048,2]
[310283395,1704461711384,-428.65,0.00029174,2]
[310283396,1704461711407,-151.42,0.00029183,2]
[310283397,1704461711430,-500.0,0.00029459,2]
[310283398,1704461711453,-500.0,0.0002967,2]
[310283399,1704461711478,-1363.897768,0.0002968,2]
[310283400,1704461711505,-165.51884292,0.00029799,2]
[310283401,1704461711530,-114015.00430659,0.000298,2]
[310283404,1704461738542,-927.52668238,0.00023,2]
[310283405,1704461738566,-507.31091902,0.00025,2]
[310283406,1704461738589,-532.40497129,0.00025,2]
[310283407,1704461738613,-222.96521242,0.00027,2]
[310283408,1704461738636,-321.9744828,0.00027359,2]
[310283409,1704461738662,-328.75912938,0.0002774,2]
[310283410,1704461738690,-1024.5390341,0.00027741,2]
[310283411,1704461738712,-208.0,0.000289,2]
[310283412,1704461738733,-1074.71805508,0.00029204,2]
[310283413,1704461738755,-2000.0,0.0002968,3]
[310283414,1704461738787,-234.5870595,0.00029798,2]
[310283415,1704461738809,-155.28376448,0.00029798,2]
[310283416,1704461738830,-1654.08515166,0.00029798,2]
[310283417,1704461738854,-202.42953017,0.00029798,2]
[310283418,1704461738876,-3316.78045166,0.00029798,2]
[310283419,1704461738898,-321.1799864,0.00029798,2]
[310283420,1704461738920,-1580.1889945,0.00029798,2]
[310283421,1704461738943,-3290.38080987,0.00029799,2]
[310283422,1704461738966,-129007.34190617,0.00029799,2]
[310283423,1704461738988,-160309.74361304,0.000298,2]
[310283424,1704461739011,-15816.16841591,0.000298,2]
[310283425,1704461739033,-186.65169799,0.000298,2]
[310283426,1704461739055,-151.467,0.000298,2]
[310283427,1704461739078,-203.51667544,0.000299,2]
[310283428,1704461739101,-776.57427022,0.000299,2]
[310283429,1704461739123,-413.02390415,0.0002996,2]
[310283430,1704461739147,-462.71882769,0.00029997,2]
[310283431,1704461739175,-50000.0,0.0003,2]
[310283432,1704461739200,-155.0,0.0003,2]
[310283433,1704461739224,-7684.6050758,0.0003,4]
[310283434,1704461739249,-2570.61641772,0.0003,4]
[310283435,1704461739277,-1019.0,0.0003,3]
[310283436,1704461739300,-18961.25296946,0.0003,4]
[310283437,1704461739323,-689.70324588,0.0003,2]
[310283438,1704461739345,-172.66654664,0.0003,4]
[310283439,1704461739368,-4312.52960342,0.0003,4]
[310283440,1704461739391,-663.54769811,0.0003,2]
[310283441,1704461739413,-563.54044483,0.0003,4]
[310283442,1704461739436,-324.13721896,0.0003,4]
[310283443,1704461739457,-2728.91454028,0.0003,2]
[310283444,1704461739479,-84924.16569358,0.0003,2]
[310283445,1704461755012,-293.44,0.00023,2]
[310283446,1704461755039,-321.9744828,0.00027359,2]
[310283447,1704461755061,-1000.0,0.000277,2]
[310283448,1704461755084,-200.0,0.00028799,2]
[310283449,1704461755106,-507.31091902,0.00028799,2]
[310283450,1704461755128,-2958.1729,0.00029,2]
[310283451,1704461755150,-2958.1729,0.00029,2]
[310283452,1704461755174,-55079.1760534,0.0003,2]
[310283453,1704461755198,-500.0,0.0003,2]
[310283454,1704461755220,-1000.0,0.0003,2]
[310283455,1704461755243,-155.0,0.0003,2]
[310283456,1704461755268,-200.0,0.0003,2]
[310283457,1704461755291,-300.0,0.0003,2]
[310283458,1704461755314,-254.97478364,0.0003,4]
[310283459,1704461755335,-1789.01318,0.0003,2]
[310283460,1704461755358,-1789.01318,0.0003,2]
[310283461,1704461755379,-1789.01319,0.0003,2]
[310283462,1704461755401,-1789.01318,0.0003,2]
[310283463,1704461755423,-1789.01318,0.0003,2]
[310283464,1704461755446,-1789.01319,0.0003,2]
[310283465,1704461755470,-1363.89776791,0.00030011,2]
[310283466,1704461755499,-588.8,0.00030026,2]
[310283467,1704461755523,-413.98,0.00030088,2]
[310283468,1704461755546,-295.46457529,0.000301,2]
[310283469,1704461755569,-732.52,0.00030108,2]
[310283470,1704461755591,-153.84,0.00030137,2]
[310283471,1704461755618,-155.0,0.00030137,2]
[310283472,1704461755642,-19999.99,0.00030137,2]
[310283473,1704461755666,-293.41,0.00030159,2]
[310283474,1704461755692,-293.41,0.00030159,2]
[310283475,1704461755714,-293.41,0.00030159,2]
[310283476,1704461755736,-167.0,0.00030206,2]
[310283477,1704461755767,-1363.89776791,0.00030343,2]
[310283478,1704461755794,-500.0,0.0003037,2]
[310283479,1704461755821,-1363.89776791,0.00030674,2]
[310283480,1704461755846,-500.0,0.0003073,2]
[310283481,1704461755871,-271.5018241,0.00030779,2]
[310283482,1704461755896,-384.05879725,0.00030779,2]
[310283483,1704461755924,-330.37097772,0.00030779,2]
[310283484,1704461755950,-150.0,0.00030799,2]
[310283485,1704461755976,-11494.12917793,0.00030838,2]
[310283486,1704461756002,-10062.6772778,0.0003084,5]
[310283487,1704461756038,-11016.2547243,0.00030858,2]
[310283488,1704461756065,-2123.09461832,0.00030877,2]
[310283489,1704461756095,-384.45047411,0.00030877,4]
[310283490,1704461756120,-826.57233642,0.00030877,4]
[310283491,1704461756145,-173330.40179332,0.00030878,2]
[310283492,1704461756172,-336.0,0.00030878,5]
[310283493,1704461756198,-184349.66898085,0.00030879,3]
[310283624,1704462631599,-300.0,0.00022999,2]
[310283625,1704462631609,-300.0,0.00022999,2]
[310283626,1704462631619,-190.50606502,0.00022999,2]
[310283627,1704462631629,-1250.0,0.00023,3]
[310283628,1704462631639,-249.42,0.00023,2]
[310283629,1704462631649,-248.613,0.00023788,2]
[310283630,1704462631659,-300.0,0.00024299,2]
[310283631,1704462631669,-150.0,0.00024299,2]
[310283632,1704462631679,-38021.0,0.000243,2]
[310283633,1704462631689,-532.40497129,0.00025,2]
[310283634,1704462631698,-1300.0,0.00025,3]
[310283635,1704462631709,-151.42,0.0002584,2]
[310283636,1704462631720,-150.0,0.00026788,2]
[310283637,1704462631730,-1580.1889945,0.00026999,2]
[310283638,1704462631740,-1350.0,0.00027,3]
[310283639,1704462631750,-510.66,0.00027,2]
[310283640,1704462631760,-636.74,0.00027,2]
[310283641,1704462631771,-2533.14,0.00027,2]
[310283642,1704462631781,-2907.62,0.00027,2]
[310283643,1704462631790,-499.99,0.00027,2]
[310283644,1704462631800,-440.09,0.00027,2]
[310283645,1704462631810,-723.91,0.0002736,2]
[310283646,1704462631820,-917.2,0.0002736,2]
[310283647,1704462631830,-155.0,0.00027397,2]
[310283648,1704462631840,-938.84399694,0.00027397,7]
[310283649,1704462631849,-624.46551392,0.00027397,7]
[310283650,1704462631859,-743.84544297,0.00027397,7]
[310283651,1704462631868,-3000.0,0.00027397,2]
[310283652,1704462631878,-217.64610337,0.00027397,7]
[310283653,1704462631888,-3000.0,0.00027397,2]
[310283654,1704462631898,-2737.35399243,0.00027397,2]
[310283655,1704462631928,-3142.64600757,0.00027397,2]
[310283656,1704462631938,-250.0,0.000274,2]
[310283658,1704462631947,-164.44,0.00027634,2]
[310283660,1704462631957,-403.59,0.00027634,2]
[310283662,1704462631967,-150.99,0.00027634,2]
[310283665,1704462631976,-933.0,0.00027644,7]
[310283668,1704462631986,-616.0,0.00027644,7]
[310283671,1704462631996,-741.0,0.00027644,7]
[310283674,1704462632006,-721.32,0.00027876,2]
[310283677,1704462632018,-933.0,0.0002789,7]
[310283680,1704462632027,-616.0,0.0002789,7]
[310283682,1704462632037,-741.0,0.0002789,7]
[310283684,1704462632048,-176.62614849,0.00027904,6]
[310283686,1704462632058,-431.78,0.00027904,2]
[310283688,1704462632067,-7030.72,0.00027945,2]
[310283690,1704462632077,-713.87,0.0002796,2]
[310283692,1704462632088,-150.0,0.00027978,2]
[310283694,1704462632098,-10000.0,0.00028033,2]
[310283696,1704462632108,-207.0,0.00028068,2]
[310283698,1704462632119,-250.0,0.00028069,2]
[310283700,1704462632129,-728.45,0.00028082,2]
[310283702,1704462632139,-933.0,0.00028137,7]
[310283704,1704462632148,-616.0,0.00028137,7]
[310283706,1704462632158,-741.0,0.00028137,7]
[310283708,1704462632167,-933.0,0.00028383,7]
[310283710,1704462632177,-616.0,0.00028383,7]
[310283712,1704462632187,-741.0,0.00028383,7]
[310283714,1704462632196,-933.0,0.0002863,7]
[310283716,1704462632205,-616.0,0.0002863,7]
[310283718,1704462632215,-741.0,0.0002863,7]
[310283720,1704462632223,-155.0,0.00028767,2]
[310283722,1704462632233,-8016.93225578,0.00028861,2]
[310283723,1704462632242,-933.0,0.00028876,7]
[310283724,1704462632252,-616.0,0.00028876,7]
[310283725,1704462632262,-741.0,0.00028876,7]
[310283726,1704462632271,-431.78,0.00028882,2]
[310283727,1704462632281,-208.0,0.00028898,2]
[310283728,1704462632290,-1400.0,0.00029,3]
[310283729,1704462632300,-3000.0,0.00029,2]
[310283730,1704462632310,-933.0,0.00029123,7]
[310283731,1704462632320,-616.0,0.00029123,7]
[310283732,1704462632330,-741.0,0.00029123,7]
[310283733,1704462632341,-151.42,0.00029149,2]
[310283734,1704462632530,-321.9744828,0.00029335,2]
[310283735,1704462632540,-1128.87,0.00029335,2]
[310283736,1704462632549,-933.0,0.0002937,7]
[310283737,1704462632559,-616.0,0.0002937,7]
[310283738,1704462632568,-741.0,0.0002937,7]
[310283739,1704462632577,-933.0,0.00029616,7]
[310283740,1704462632586,-616.0,0.00029616,7]
[310283741,1704462632596,-741.0,0.00029616,7]
[310283742,1704462632605,-150.0,0.00029788,2]
[310283743,1704462632614,-161.79,0.00029811,2]
[310283744,1704462632623,-431.78,0.00029861,2]
[310283745,1704462632633,-5730.0,0.0003,2]
[310283746,1704462632642,-155.0,0.0003,2]
[310283747,1704462632651,-254.97478364,0.0003,4]
[310283748,1704462632661,-3000.0,0.0003,2]
[310283749,1704462632671,-200.0,0.0003,2]
[310283750,1704462632680,-500.0,0.00030027,2]
[310283751,1704462632689,-708.08975119,0.00030036,2]
[310283752,1704462632698,-167.0,0.00030112,2]
[310283753,1704462632707,-459.43571807,0.00030135,4]
[310283754,1704462632717,-18961.25296946,0.00030135,4]
[310283755,1704462632726,-500.0,0.00030136,2]
[310283756,1704462632736,-500.0,0.00030136,2]
[310283757,1704462632747,-500.0,0.00030136,2]
[310283758,1704462632757,-500.0,0.00030136,2]
[310283759,1704462632769,-508.07302497,0.00030136,2]
[310283760,1704462632779,-979.0,0.00030136,2]
[310283761,1704462632789,-500.0,0.00030136,2]
[310283762,1704462632798,-500.0,0.00030136,2]
[310283763,1704462632808,-500.0,0.00030136,2]
[310283764,1704462632820,-508.65,0.00030136,2]
[310283765,1704462632829,-500.0,0.00030136,2]
[310283766,1704462632839,-500.0,0.00030136,2]
[310283767,1704462632848,-500.0,0.00030136,2]
[310283768,1704462632858,-500.0,0.00030136,2]
[310283769,1704462632867,-631.62,0.00030136,2]
[310283770,1704462632876,-500.0,0.00030136,2]
[310283771,1704462632885,-500.0,0.00030136,2]
[310283772,1704462632894,-500.0,0.00030136,2]
[310283773,1704462632905,-500.0,0.00030136,2]
[310283774,1704462632915,-500.0,0.00030136,2]
[310283775,1704462632925,-500.0,0.00030136,2]
[310283776,1704462632934,-500.0,0.00030136,2]
[310283777,1704462632943,-500.0,0.00030136,2]
[310283778,1704462632953,-500.0,0.00030136,2]
[310283779,1704462632962,-500.0,0.00030136,2]
[310283780,1704462632971,-500.0,0.00030136,2]
[310283781,1704462632980,-233.05561022,0.00030136,2]
[310283782,1704462632990,-500.0,0.00030136,2]
[310283783,1704462632999,-500.0,0.00030136,2]
[310283784,1704462633008,-500.0,0.00030136,2]
[310283785,1704462633020,-500.0,0.00030136,2]
[310283786,1704462633031,-1051.84,0.00030136,2]
[310283787,1704462633041,-500.0,0.00030136,2]
[310283788,1704462633049,-3182.39,0.00030136,2]
[310283789,1704462633059,-500.0,0.00030136,2]
[310283790,1704462633069,-500.0,0.00030136,2]
[310283791,1704462633078,-500.0,0.00030136,2]
[310283792,1704462633088,-560.18,0.00030136,2]
[310283793,1704462633098,-627.05,0.00030136,2]
[310283794,1704462633109,-500.0,0.00030136,2]
[310283795,1704462633120,-500.0,0.00030136,2]
[310283796,1704462633130,-500.0,0.00030136,2]
[310283797,1704462633139,-500.0,0.00030136,2]
[310283798,1704462633150,-500.0,0.00030136,2]
[310283799,1704462633160,-1208.62,0.00030136,2]
[310283800,1704462633170,-500.0,0.00030136,2]
[310283801,1704462633180,-500.0,0.00030136,2]
[310283802,1704462633190,-500.0,0.00030136,2]
[310283803,1704462633200,-500.0,0.00030136,2]
[310283804,1704462633210,-666.44,0.00030136,2]
[310283805,1704462633219,-1576.13,0.00030136,2]